fUSD/lending_fUSD_20240105
["ID","MTS","AMOUNT","RATE_DAILY","PERIOD"]
[310340430,1704480648961,-500.0,0.00030136,2]
[310340431,1704480648973,-500.0,0.00030136,2]
[310340432,1704480648983,-417.81,0.00030136,2]
[310340433,1704480648994,-500.0,0.00030136,2]
[310340434,1704480649006,-500.0,0.00030136,2]
[310340435,1704480649014,-895.83,0.00030136,2]
[310340436,1704480649024,-500.0,0.00030136,2]
[310340437,1704480649035,-500.0,0.00030136,2]
[310340438,1704480649044,-500.0,0.00030136,2]
[310340439,1704480649054,-500.0,0.00030136,2]
[310340440,1704480649063,-500.0,0.00030136,2]
[310340441,1704480649074,-7083.47,0.00030136,2]
[310340442,1704480649083,-500.0,0.00030136,2]
[310340443,1704480649093,-500.0,0.00030136,2]
[310340444,1704480649102,-1339.44,0.00030136,2]
[310340445,1704480649111,-500.0,0.00030136,2]
[310340446,1704480649121,-732.92,0.00030136,2]
[310340447,1704480649130,-3664.92,0.00030136,2]
[310340448,1704480649140,-500.0,0.00030136,2]
[310340449,1704480649149,-764.23,0.00030136,2]
[310340450,1704480649159,-3269.73,0.00030136,2]
[310340451,1704480649169,-500.0,0.00030136,2]
[310340452,1704480649179,-500.0,0.00030136,2]
[310340453,1704480649189,-500.0,0.00030136,2]
[310340454,1704480649199,-500.0,0.00030136,2]
[310340455,1704480649209,-500.0,0.00030136,2]
[310340456,1704480649218,-500.0,0.00030136,2]
[310340457,1704480649227,-500.0,0.00030136,2]
[310340458,1704480649237,-2536.92,0.00030136,2]
[310340459,1704480649247,-500.0,0.00030136,2]
[310340460,1704480649257,-500.0,0.00030136,2]
[310340461,1704480649267,-500.0,0.00030136,2]
[310340462,1704480649277,-500.0,0.00030136,2]
[310340463,1704480649287,-500.0,0.00030136,2]
[310340464,1704480649297,-500.0,0.00030136,2]
[310340465,1704480649306,-500.0,0.00030136,2]
[310340466,1704480649315,-635.02,0.00030136,2]
[310340467,1704480649325,-2229.14,0.00030136,2]
[310340468,1704480649334,-5415.47,0.00030136,2]
[310340469,1704480649347,-3053.52,0.00030136,2]
[310340470,1704480649357,-500.0,0.00030136,2]
[310340471,1704480649367,-500.0,0.00030136,2]
[310340472,1704480649377,-500.0,0.00030136,2]
[310340473,1704480649386,-500.0,0.00030136,2]
[310340474,1704480649396,-500.0,0.00030136,2]
[310340475,1704480649405,-500.0,0.00030136,2]
[310340476,1704480649415,-500.0,0.00030136,2]
[310340477,1704480649425,-500.0,0.00030136,2]
[310340478,1704480649434,-500.0,0.00030136,2]
[310340479,1704480649443,-3475.16,0.00030136,2]
[310340480,1704480649453,-500.0,0.00030136,2]
[310340481,1704480649463,-971.12,0.00030136,2]
[310340482,1704480649473,-500.0,0.00030136,2]
[310340483,1704480649483,-500.0,0.00030136,2]
[310340484,1704480649492,-500.0,0.00030136,2]
[310340485,1704480649502,-500.0,0.00030136,2]
[310340486,1704480649511,-500.0,0.00030136,2]
[310340487,1704480649521,-10698.03,0.00030136,2]
[310340488,1704480649530,-500.0,0.00030136,2]
[310340489,1704480649539,-34440.69,0.00030136,2]
[310340490,1704480649549,-324.79234295,0.00030136,2]
[310340491,1704480649557,-500.0,0.00030136,2]
[310340492,1704480649564,-2860.46,0.00030136,2]
[310340493,1704480649574,-500.0,0.00030136,2]
[310340494,1704480649584,-3465.46,0.00030136,2]
[310340495,1704480649594,-500.0,0.00030136,2]
[310340496,1704480649604,-500.0,0.00030136,2]
[310340497,1704480649614,-500.0,0.00030136,2]
[310340498,1704480649625,-500.0,0.00030136,2]
[310340499,1704480649634,-500.0,0.00030136,2]
[310340500,1704480649646,-500.0,0.00030136,2]
[310340501,1704480649655,-500.0,0.00030136,2]
[310340502,1704480649665,-500.0,0.00030136,2]
[310340503,1704480649680,-500.0,0.00030136,2]
[310340504,1704480649689,-500.0,0.00030136,2]
[310340505,1704480649700,-455.99006157,0.00030136,2]
[310340506,1704480649710,-500.0,0.00030136,2]
[310340507,1704480649721,-506.48,0.00030136,2]
[310340508,1704480649731,-500.0,0.00030136,2]
[310340509,1704480649741,-500.0,0.00030136,2]
[310340510,1704480649752,-500.0,0.00030136,2]
[310340511,1704480649762,-797.14,0.00030136,2]
[310340512,1704480649771,-629.95,0.00030136,2]
[310340513,1704480649783,-500.0,0.00030136,2]
[310340514,1704480649793,-500.0,0.00030136,2]
[310340515,1704480649803,-1776.44,0.00030136,2]
[310340516,1704480649814,-500.0,0.00030136,2]
[310340517,1704480649823,-500.0,0.00030136,2]
[310340518,1704480649833,-500.0,0.00030136,2]
[310340519,1704480649843,-500.0,0.00030136,2]
[310340520,1704480649853,-3491.42,0.00030136,2]
[310340521,1704480649864,-7139.04,0.00030136,2]
[310340522,1704480649873,-500.0,0.00030136,2]
[310340523,1704480649885,-500.0,0.00030136,2]
[310340524,1704480649895,-207.9220019,0.00030136,2]
[310340525,1704480649904,-500.0,0.00030136,2]
[310340526,1704480649915,-500.0,0.00030136,2]
[310340527,1704480649924,-500.0,0.00030136,2]
[310340528,1704480649933,-5307.12,0.00030136,2]
[310340529,1704480649942,-500.0,0.00030136,2]
[310340530,1704480649952,-1690.47,0.00030136,2]
[310340531,1704480649962,-803.7,0.00030136,2]
[310340532,1704480649971,-500.0,0.00030136,2]
[310340533,1704480649981,-500.0,0.00030136,2]
[310340534,1704480649991,-500.0,0.00030136,2]
[310340535,1704480650001,-3955.79,0.00030136,2]
[310340536,1704480650013,-500.0,0.00030136,2]
[310340537,1704480650023,-898.54,0.00030136,2]
[310340538,1704480650032,-1030.33,0.00030136,2]
[310340539,1704480650042,-500.0,0.00030136,2]
[310340540,1704480650052,-500.0,0.00030136,2]
[310340541,1704480650062,-500.0,0.00030136,2]
[310340542,1704480650072,-500.0,0.00030136,2]
[310340543,1704480650082,-1111.16,0.00030136,2]
[310340544,1704480650092,-500.0,0.00030136,2]
[310340545,1704480650102,-500.0,0.00030136,2]
[310340546,1704480650111,-500.0,0.00030136,2]
[310340547,1704480650122,-5149.18,0.00030136,2]
[310340548,1704480650132,-500.0,0.00030136,2]
[310340549,1704480650142,-500.0,0.00030136,2]
[310340550,1704480650151,-500.0,0.00030136,2]
[310340551,1704480650161,-500.0,0.00030136,2]
[310340552,1704480650170,-1576.41,0.00030136,2]
[310340553,1704480650180,-522.79,0.00030136,2]
[310340554,1704480650190,-500.0,0.00030136,2]
[310340555,1704480650200,-1405.95,0.00030136,2]
[310340556,1704480650209,-500.0,0.00030136,2]
[310340557,1704480650219,-731.35,0.00030136,2]
[310340558,1704480650229,-500.0,0.00030136,2]
[310340559,1704480650238,-3816.06,0.00030136,2]
[310340560,1704480650248,-2941.14,0.00030136,2]
[310340561,1704480650258,-500.0,0.00030136,2]
[310340562,1704480650267,-500.0,0.00030136,2]
[310340563,1704480650277,-1889.83,0.00030136,2]
[310340564,1704480650286,-500.0,0.00030136,2]
[310340565,1704480650296,-500.0,0.00030136,2]
[310340566,1704480650306,-1449.26,0.00030136,2]
[310340567,1704480650316,-500.0,0.00030136,2]
[310340568,1704480650325,-500.0,0.00030136,2]
[310340569,1704480650335,-500.0,0.00030136,2]
[310340570,1704480650345,-500.0,0.00030136,2]
[310340571,1704480650354,-500.0,0.00030136,2]
[310340572,1704480650364,-2163.54,0.00030136,2]
[310340573,1704480650374,-880.07,0.00030136,2]
[310340574,1704480650383,-500.0,0.00030136,2]
[310340575,1704480650393,-500.0,0.00030136,2]
[310340576,1704480650402,-500.0,0.00030136,2]
[310340577,1704480650412,-1444.11,0.00030136,2]
[310340578,1704480650421,-500.0,0.00030136,2]
[310340579,1704480650430,-500.0,0.00030136,2]
[310340580,1704480650440,-500.0,0.00030136,2]
[310340581,1704480650449,-500.0,0.00030136,2]
[310340582,1704480650459,-627.38,0.00030136,2]
[310340583,1704480650469,-5344.23,0.00030136,2]
[310340584,1704480650479,-3121.5,0.00030136,2]
[310340585,1704480650488,-500.0,0.00030136,2]
[310340586,1704480650499,-500.0,0.00030136,2]
[310340587,1704480650509,-3785.04,0.00030136,2]
[310340588,1704480650519,-3397.49,0.00030136,2]
[310340589,1704480650530,-500.0,0.00030136,2]
[310340590,1704480650539,-677.34,0.00030136,2]
[310340591,1704480650548,-500.0,0.00030136,2]
[310340592,1704480650557,-1041.28,0.00030136,2]
[310340593,1704480650567,-500.0,0.00030136,2]
[310340594,1704480650578,-500.0,0.00030136,2]
[310340595,1704480650588,-500.0,0.00030136,2]
[310340596,1704480650598,-500.0,0.00030136,2]
[310340597,1704480650608,-500.0,0.00030136,2]
[310340598,1704480650618,-651.93,0.00030136,2]
[310340599,1704480650629,-500.0,0.00030136,2]
[310340600,1704480650639,-500.0,0.00030136,2]
[310340601,1704480650649,-500.0,0.00030136,2]
[310340602,1704480650659,-500.0,0.00030136,2]
[310340603,1704480650978,-906.52,0.00030136,2]
[310340604,1704480650989,-500.0,0.00030136,2]
[310340605,1704480651000,-500.0,0.00030136,2]
[310340606,1704480651010,-500.0,0.00030136,2]
[310340607,1704480651020,-500.0,0.00030136,2]
[310340608,1704480651030,-13234.88,0.00030136,2]
[310340609,1704480651039,-500.0,0.00030136,2]
[310340610,1704480651049,-500.0,0.00030136,2]
[310340611,1704480651058,-775.66,0.00030136,2]
[310340612,1704480651068,-500.0,0.00030136,2]
[310340613,1704480651077,-7924.64,0.00030136,2]
[310340614,1704480651086,-500.0,0.00030136,2]
[310340615,1704480651096,-500.0,0.00030136,2]
[310340616,1704480651105,-500.0,0.00030136,2]
[310340617,1704480651115,-500.0,0.00030136,2]
[310340618,1704480651125,-3544.21,0.00030136,2]
[310340619,1704480651134,-500.0,0.00030136,2]
[310340620,1704480651144,-2190.61,0.00030136,2]
[310340621,1704480651153,-1425.2,0.00030136,2]
[310340622,1704480651163,-500.0,0.00030136,2]
[310340623,1704480651172,-2300.65,0.00030136,2]
[310340624,1704480651181,-500.0,0.00030136,2]
[310340625,1704480651191,-644.41004533,0.00030136,2]
[310340626,1704480651200,-500.0,0.00030136,2]
[310340627,1704480651209,-529.13677566,0.00030136,2]
[310340628,1704480651219,-500.0,0.00030136,2]
[310340629,1704480651228,-548.4,0.00030136,2]
[310340630,1704480651238,-509.12245184,0.00030136,2]
[310340631,1704480651252,-500.0,0.00030136,2]
[310340632,1704480651261,-500.0,0.00030136,2]
[310340633,1704480651271,-500.0,0.00030136,2]
[310340634,1704480651281,-500.0,0.00030136,2]
[310340635,1704480651291,-500.0,0.00030136,2]
[310340636,1704480651301,-500.0,0.00030136,2]
[310340638,1704480651310,-500.0,0.00030136,2]
[310340639,1704480651320,-500.0,0.00030136,2]
[310340640,1704480651330,-1828.54,0.00030136,2]
[310340642,1704480651339,-500.0,0.00030136,2]
[310340643,1704480651349,-601.49,0.00030136,2]
[310340644,1704480651359,-500.0,0.00030136,2]
[310340646,1704480651369,-500.0,0.00030136,2]
[310340647,1704480651379,-500.0,0.00030136,2]
[310340648,1704480651388,-615.94,0.00030136,2]
[310340649,1704480651398,-2528.13,0.00030136,2]
[310340650,1704480651408,-500.0,0.00030136,2]
[310340651,1704480651417,-500.0,0.00030136,2]
[310340652,1704480651427,-500.0,0.00030136,2]
[310340653,1704480651436,-1186.12,0.00030136,2]
[310340654,1704480651446,-3513.44,0.00030136,2]
[310340655,1704480651455,-5022.3,0.00030136,2]
[310340656,1704480651464,-500.0,0.00030136,2]
[310340657,1704480651475,-1503.22,0.00030136,2]
[310340658,1704480651485,-500.0,0.00030136,2]
[310340659,1704480651495,-500.0,0.00030136,2]
[310340660,1704480651506,-500.0,0.00030136,2]
[310340661,1704480651516,-500.0,0.00030136,2]
[310340662,1704480651526,-500.0,0.00030136,2]
[310340663,1704480651536,-500.0,0.00030136,2]
[310340664,1704480651546,-500.0,0.00030136,2]
[310340665,1704480651556,-652.87,0.00030136,2]
[310340666,1704480651566,-500.0,0.00030136,2]
[310340667,1704480651576,-500.0,0.00030136,2]
[310340668,1704480651586,-721.27,0.00030136,2]
[310340669,1704480651595,-500.0,0.00030136,2]
[310340670,1704480651605,-1250.89,0.00030136,2]
[310340671,1704480651614,-1522.08,0.00030136,2]
[310340672,1704480651623,-500.0,0.00030136,2]
[310340673,1704480651633,-500.0,0.00030136,2]
[310340674,1704480651642,-500.0,0.00030136,2]
[310340675,1704480651651,-500.0,0.00030136,2]
[310340676,1704480651661,-500.0,0.00030136,2]
[310340677,1704480651670,-1815.16,0.00030136,2]
[310340678,1704480651680,-500.0,0.00030136,2]
[310340679,1704480651690,-500.0,0.00030136,2]
[310340680,1704480651699,-3219.46,0.00030136,2]
[310340681,1704480651708,-500.0,0.00030136,2]
[310340682,1704480651718,-3615.0,0.00030136,2]
[310340683,1704480651727,-596.14,0.00030136,2]
[310340684,1704480651737,-664.53,0.00030136,2]
[310340685,1704480651747,-527.79,0.00030136,2]
[310340686,1704480651757,-652.7,0.00030136,2]
[310340687,1704480651770,-500.0,0.00030136,2]
[310340688,1704480651779,-500.0,0.00030136,2]
[310340689,1704480651789,-500.0,0.00030136,2]
[310340690,1704480651800,-917.41,0.00030136,2]
[310340691,1704480651811,-908.02,0.00030136,2]
[310340692,1704480651821,-945.74,0.00030136,2]
[310340693,1704480651830,-3148.19,0.00030136,2]
[310340694,1704480651840,-500.0,0.00030136,2]
[310340695,1704480651850,-500.0,0.00030136,2]
[310340696,1704480651860,-227.71051894,0.00030136,2]
[310340697,1704480651869,-1836.51,0.00030136,2]
[310340698,1704480651879,-500.0,0.00030136,2]
[310340699,1704480651889,-25.16006901,0.00030136,2]
[310340701,1704480652535,-1088.52993099,0.00030136,2]
[310340702,1704480652544,-500.0,0.00030136,2]
[310340703,1704480652554,-1144.83771333,0.00030136,2]
[310340704,1704480652566,-928.49228667,0.00030136,2]
[310340705,1704480652575,-2040.28178377,0.00030136,2]
[310340706,1704480652588,-246.07821623,0.00030136,2]
[310340707,1704480652597,-270.27792575,0.00030136,2]
[310340708,1704480652609,-229.72207425,0.00030136,2]
[310340709,1704480652619,-500.0,0.00030136,2]
[310340710,1704480652629,-500.0,0.00030136,2]
[310340711,1704480652639,-2457.63,0.00030136,2]
[310340712,1704480652649,-827.94798325,0.00030136,2]
[310340713,1704480652661,-251.60714365,0.00030136,2]
[310340714,1704480652681,-432.99651565,0.00030136,2]
[310340715,1704480652707,-2494.87835745,0.00030136,2]
[310340716,1704480652716,-2113.29,0.00030136,2]
[310340717,1704480652726,-604.19,0.00030136,2]
[310340718,1704480652735,-500.0,0.00030136,2]
[310340719,1704480652745,-2867.41,0.00030136,2]
[310340720,1704480652757,-500.0,0.00030136,2]
[310340721,1704480652766,-500.0,0.00030136,2]
[310340722,1704480652775,-500.0,0.00030136,2]
[310340723,1704480652785,-500.0,0.00030136,2]
[310340724,1704480652794,-706.13,0.00030136,2]
[310340725,1704480652803,-658.86,0.00030136,2]
[310340726,1704480652813,-500.0,0.00030136,2]
[310340727,1704480652822,-500.0,0.00030136,2]
[310340728,1704480652831,-500.0,0.00030136,2]
[310340729,1704480652841,-500.0,0.00030136,2]
[310340730,1704480652850,-500.0,0.00030136,2]
[310340731,1704480652859,-1268.94,0.00030136,2]
[310340732,1704480652867,-500.0,0.00030136,2]
[310340733,1704480652877,-2216.67,0.00030136,2]
[310340734,1704480652887,-14255.93255556,0.00030136,2]
[310340735,1704480652904,-2150.90366644,0.00030136,2]
[310340736,1704480653202,-478.613072,0.00030136,2]
[310340737,1704480654080,-1395.21065674,0.00030136,2]
[310340738,1704480654093,-1092.57004926,0.00030136,2]
[310340739,1704480654103,-500.0,0.00030136,2]
[310340740,1704480654112,-500.0,0.00030136,2]
[310340741,1704480654122,-500.0,0.00030136,2]
[310340742,1704480654132,-3080.48,0.00030136,2]
[310340743,1704480654142,-500.0,0.00030136,2]
[310340744,1704480654152,-4277.93,0.00030136,2]
[310340745,1704480654162,-500.0,0.00030136,2]
[310340746,1704480654173,-766.41321396,0.00030136,2]
[310340747,1704480654190,-561.52678604,0.00030136,2]
[310340748,1704480654199,-500.0,0.00030136,2]
[310340749,1704480654210,-500.0,0.00030136,2]
[310340750,1704480654220,-468.52345545,0.00030136,2]
[310340751,1704480654232,-31.47654455,0.00030136,2]
[310340752,1704480654242,-500.0,0.00030136,2]
[310340753,1704480654252,-406.58901653,0.00030136,2]
[310340754,1704480654266,-93.41098347,0.00030136,2]
[310340755,1704480654279,-500.0,0.00030136,2]
[310340756,1704480654289,-585.24557783,0.00030136,2]
[310340757,1704480654299,-500.0,0.00030136,2]
[310340758,1704480654310,-500.0,0.00030136,2]
[310340759,1704480654320,-500.0,0.00030136,2]
[310340760,1704480654330,-500.0,0.00030136,2]
[310340761,1704480654339,-1000.0,0.00030136,2]
[310340762,1704480654350,-1188.16,0.00030136,2]
[310340763,1704480654359,-500.0,0.00030136,2]
[310340764,1704480654369,-500.0,0.00030136,2]
[310340765,1704480654379,-500.0,0.00030136,2]
[310340766,1704480654388,-500.0,0.00030136,2]
[310340767,1704480654398,-1522.78,0.00030136,2]
[310340768,1704480654407,-500.0,0.00030136,2]
[310340769,1704480654416,-500.0,0.00030136,2]
[310340770,1704480654426,-500.0,0.00030136,2]
[310340771,1704480654435,-500.0,0.00030136,2]
[310340772,1704480654444,-1930.92,0.00030136,2]
[310340773,1704480654454,-1774.93,0.00030136,2]
[310340774,1704480654464,-1336.04,0.00030136,2]
[310340775,1704480654475,-534.19,0.00030136,2]
[310340776,1704480654484,-28273.93,0.00030136,2]
[310340777,1704480654493,-2530.59,0.00030136,2]
[310340778,1704480654503,-500.0,0.00030136,2]
[310340779,1704480654515,-500.0,0.00030136,2]
[310340780,1704480654524,-905.86,0.00030136,2]
[310340781,1704480654534,-228.60211467,0.00030136,2]
[310340782,1704480654543,-2239.88,0.00030136,2]
[310340783,1704480654552,-326.28075711,0.00030136,2]
[310340784,1704480654665,-173.71924289,0.00030136,2]
[310340785,1704480654676,-500.0,0.00030136,2]
[310340786,1704480654686,-558.64,0.00030136,2]
[310340787,1704480654695,-500.0,0.00030136,2]
[310340788,1704480654704,-500.0,0.00030136,2]
[310340789,1704480654714,-500.0,0.00030136,2]
[310340790,1704480654723,-3674.01,0.00030136,2]
[310340791,1704480654732,-500.0,0.00030136,2]
[310340792,1704480654741,-500.0,0.00030136,2]
[310340793,1704480654751,-1097.58,0.00030136,2]
[310340794,1704480654760,-500.0,0.00030136,2]
[310340795,1704480654770,-2537.94,0.00030136,2]
[310340796,1704480654779,-500.0,0.00030136,2]
[310340797,1704480654789,-500.0,0.00030136,2]
[310340798,1704480654798,-500.0,0.00030136,2]
[310340799,1704480654808,-500.0,0.00030136,2]
[310340800,1704480654817,-597.02,0.00030136,2]
[310340801,1704480654827,-500.0,0.00030136,2]
[310340802,1704480654837,-3115.93,0.00030136,2]
[310340803,1704480654846,-500.0,0.00030136,2]
[310340804,1704480654855,-500.0,0.00030136,2]
[310340805,1704480654864,-691.2,0.00030136,2]
[310340806,1704480654874,-500.0,0.00030136,2]
[310340807,1704480654883,-870.18,0.00030136,2]
[310340808,1704480654893,-3107.08,0.00030136,2]
[310340809,1704480654902,-500.0,0.00030136,2]
[310340810,1704480654912,-637.81,0.00030136,2]
[310340811,1704480654921,-5515.69,0.00030136,2]
[310340812,1704480654930,-500.0,0.00030136,2]
[310340813,1704480654939,-1169.84,0.00030136,2]
[310340814,1704480654952,-2010.84,0.00030136,2]
[310340815,1704480654961,-500.0,0.00030136,2]
[310340816,1704480654971,-1822.26,0.00030136,2]
[310340817,1704480654980,-3011.55,0.00030136,2]
[310340818,1704480654991,-500.0,0.00030136,2]
[310340819,1704480655001,-500.0,0.00030136,2]
[310340820,1704480655010,-1884.38,0.00030136,2]
[310340821,1704480655021,-500.0,0.00030136,2]
[310340822,1704480655032,-500.0,0.00030136,2]
[310340823,1704480655042,-1549.13,0.00030136,2]
[310340824,1704480655052,-500.0,0.00030136,2]
[310340825,1704480655063,-500.0,0.00030136,2]
[310340826,1704480655073,-500.0,0.00030136,2]
[310340827,1704480655082,-582.33,0.00030136,2]
[310340828,1704480655092,-1113.13,0.00030136,2]
[310340829,1704480655102,-500.0,0.00030136,2]
[310340830,1704480655113,-500.0,0.00030136,2]
[310340831,1704480655123,-500.0,0.00030136,2]
[310340832,1704480655133,-734.97,0.00030136,2]
[310340833,1704480655143,-500.0,0.00030136,2]
[310340834,1704480655152,-500.0,0.00030136,2]
[310340835,1704480655161,-2359.55,0.00030136,2]
[310340836,1704480655173,-1634.85,0.00030136,2]
[310340837,1704480655184,-500.0,0.00030136,2]
[310340838,1704480655193,-500.0,0.00030136,2]
[310340839,1704480655203,-6257.57,0.00030136,2]
[310340840,1704480655212,-500.0,0.00030136,2]
[310340841,1704480655222,-2136.09,0.00030136,2]
[310340842,1704480655231,-500.0,0.00030136,2]
[310340843,1704480655241,-500.0,0.00030136,2]
[310340844,1704480655251,-500.0,0.00030136,2]
[310340845,1704480655260,-1571.88,0.00030136,2]
[310340846,1704480655270,-500.0,0.00030136,2]
[310340847,1704480655281,-2605.04,0.00030136,2]
[310340848,1704480655302,-500.0,0.00030136,2]
[310340849,1704480655313,-618.64,0.00030136,2]
[310340850,1704480655323,-4638.74,0.00030136,2]
[310340851,1704480655333,-500.0,0.00030136,2]
[310340852,1704480655343,-500.0,0.00030136,2]
[310340853,1704480655352,-997.06,0.00030136,2]
[310340854,1704480655362,-659.85,0.00030136,2]
[310340855,1704480655371,-500.0,0.00030136,2]
[310340856,1704480655381,-500.0,0.00030136,2]
[310340857,1704480655390,-1883.22,0.00030136,2]
[310340858,1704480655400,-539.5416622,0.00030136,2]
[310340859,1704480655410,-500.0,0.00030136,2]
[310340860,1704480655419,-500.0,0.00030136,2]
[310340861,1704480655429,-2426.1,0.00030136,2]
[310340862,1704480655438,-7992.41,0.00030136,2]
[310340863,1704480655447,-578.9,0.00030136,2]
[310340864,1704480655457,-1186.35,0.00030136,2]
[310340865,1704480655467,-500.0,0.00030136,2]
[310340866,1704480655477,-500.0,0.00030136,2]
[310340867,1704480655487,-1347.71,0.00030136,2]
[310340868,1704480655497,-500.0,0.00030136,2]
[310340869,1704480655507,-2756.92,0.00030136,2]
[310340870,1704480655517,-500.0,0.00030136,2]
[310340871,1704480655526,-500.0,0.00030136,2]
[310340872,1704480655536,-153.84,0.00030137,2]
[310340873,1704480655547,-1075.78130471,0.00030151,2]
[310340874,1704480655557,-714.2259503,0.00030164,2]
[310340875,1704480655567,-794.0,0.00030186,5]
[310340876,1704480655578,-800.0,0.00030235,5]
[310340877,1704480655588,-2434.24593452,0.00030368,2]
[310340878,1704480655599,-545.28,0.00030376,2]
[310340879,1704480655609,-545.28,0.00030409,2]
[310340880,1704480655619,-721.92,0.00030409,2]
[310340881,1704480655630,-721.92,0.00030409,2]
[310340882,1704480655642,-721.92,0.00030409,2]
[310340883,1704480655654,-721.92,0.00030409,2]
[310340884,1704480655665,-150.0,0.00030409,2]
[310340885,1704480655676,-500.0,0.0003041,2]
[310340886,1704480655686,-500.0,0.0003041,2]
[310340887,1704480655697,-500.0,0.0003041,2]
[310340888,1704480655708,-500.0,0.0003041,2]
[310340889,1704480655719,-500.45271924,0.0003041,2]
[310340890,1704480655729,-500.0,0.0003041,2]
[310340891,1704480655741,-500.0,0.0003041,2]
[310340892,1704480655753,-500.0,0.0003041,2]
[310340893,1704480655771,-500.0,0.0003041,2]
[310340894,1704480655782,-500.0,0.0003041,2]
[310340895,1704480655793,-500.0,0.0003041,2]
[310340896,1704480655804,-500.0,0.0003041,2]
[310340897,1704480655815,-500.0,0.0003041,2]
[310340898,1704480655826,-500.0,0.0003041,2]
[310340899,1704480655838,-500.0,0.0003041,2]
[310340900,1704480655850,-500.0,0.0003041,2]
[310340901,1704480655862,-482.4343342,0.0003041,2]
[310340902,1704480655872,-500.0,0.0003041,2]
[310340903,1704480655883,-500.0,0.0003041,2]
[310340904,1704480655894,-500.0,0.0003041,2]
[310340905,1704480655906,-574.44342754,0.0003041,2]
[310340906,1704480655917,-500.0,0.0003041,2]
[310340907,1704480655928,-500.0,0.0003041,2]
[310340908,1704480655938,-500.0,0.0003041,2]
[310340909,1704480655950,-500.0,0.0003041,2]
[310340910,1704480655960,-500.0,0.0003041,2]
[310340911,1704480655970,-500.0,0.0003041,2]
[310340912,1704480655980,-500.0,0.0003041,2]
[310340913,1704480655990,-500.0,0.0003041,2]
[310340914,1704480656000,-500.0,0.0003041,2]
[310340915,1704480656011,-500.0,0.0003041,2]
[310340916,1704480656021,-500.0,0.0003041,2]
[310340917,1704480656031,-500.0,0.0003041,2]
[310340918,1704480656042,-500.0,0.0003041,2]
[310340919,1704480656053,-500.0,0.0003041,2]
[310340920,1704480656063,-500.0,0.0003041,2]
[310340921,1704480656073,-500.0,0.0003041,2]
[310340922,1704480656084,-300.0,0.0003041,2]
[310340923,1704480656094,-500.0,0.0003041,2]
[310340924,1704480656104,-500.0,0.0003041,2]
[310340925,1704480656114,-500.0,0.0003041,2]
[310340926,1704480656124,-500.0,0.0003041,2]
[310340927,1704480656134,-500.0,0.0003041,2]
[310340928,1704480656149,-500.0,0.0003041,2]
[310340929,1704480656159,-500.0,0.0003041,2]
[310340930,1704480656170,-500.0,0.0003041,2]
[310340931,1704480656180,-500.0,0.0003041,2]
[310340932,1704480656191,-500.0,0.0003041,2]
[310340933,1704480656201,-500.0,0.0003041,2]